bitfinex/quotes_BTCUSD_20240803
["timestamp","ask_amount","ask_price","bid_price","bid_amount"]
[1722686737988,0.04583,61993.0,61992.0,1.71049308]
[1722686738198,0.04583,61993.0,61992.0,1.72249308]
[1722686738405,0.04583,61993.0,61992.0,1.87038889]
[1722686738628,0.04583,61993.0,61992.0,1.79814322]
[1722686739231,0.04583,61993.0,61992.0,1.87038889]
[1722686740101,0.04583,61993.0,61992.0,1.78712214]
[1722686740334,0.04583,61993.0,61992.0,1.77512214]
[1722686740544,0.04583,61993.0,61992.0,1.78712214]
[1722686741490,0.04583,61993.0,61992.0,1.90751077]
[1722686741675,0.04583,61993.0,61992.0,2.00882186]
[1722686742173,0.04583,61993.0,61992.0,3.28163339]
[1722686742426,0.04583,61993.0,61992.0,3.16514376]
[1722686742647,0.04583,61993.0,61992.0,3.57464149]
[1722686743552,0.04583,61993.0,61992.0,3.71910785]
[1722686744255,0.04583,61993.0,61992.0,3.71520885]
[1722686744488,0.04583,61993.0,61992.0,3.57074249]
[1722686744731,0.04583,61993.0,61992.0,3.57464149]
[1722686744974,0.04583,61993.0,61992.0,3.25147649]
[1722686745244,0.04583,61993.0,61992.0,3.25089204]
[1722686745731,0.04583,61993.0,61992.0,3.49285804]
[1722686747155,0.04583,61993.0,61992.0,3.49497917]
[1722686748600,0.04583,61993.0,61992.0,3.20334923]
[1722686748808,0.04583,61993.0,61992.0,3.49497792]
[1722686749221,0.04583,61993.0,61992.0,3.70877691]
[1722686750418,0.04583,61993.0,61992.0,3.70877656]
[1722686750619,0.04583,61993.0,61992.0,3.71267556]
[1722686751059,0.04583,61993.0,61992.0,3.70877656]
[1722686751270,0.04583,61993.0,61992.0,3.49497757]
[1722686751691,0.04583,61993.0,61992.0,3.4946809]
[1722686752319,0.04583,61993.0,61992.0,3.32717108]
[1722686752523,0.04583,61993.0,61992.0,3.49469755]
[1722686752856,0.04583,61993.0,61992.0,3.49469661]
[1722686753637,0.00083,61993.0,61992.0,3.49469661]
[1722686754196,0.00083,61993.0,61992.0,3.49859561]
[1722686754413,0.00083,61993.0,61992.0,3.49469661]
[1722686754609,0.00083,61993.0,61992.0,3.24073061]
[1722686754808,0.00083,61993.0,61992.0,3.46683183]
[1722686755233,0.00083,61993.0,61992.0,3.49469661]
[1722686755820,0.00083,61993.0,61992.0,3.48284028]
[1722686756228,0.00083,61993.0,61992.0,3.07333991]
[1722686757870,0.00083,61993.0,61992.0,3.08333991]
[1722686758490,0.00083,61993.0,61992.0,3.08533991]
[1722686760484,0.00083,61993.0,61992.0,3.0733703]
[1722686760710,0.00083,61993.0,61992.0,3.0833703]
[1722686761273,0.00083,61993.0,61992.0,3.0853703]
[1722686761861,0.00083,61993.0,61992.0,3.15238443]
[1722686762259,0.00083,61993.0,61992.0,3.15238435]
[1722686762459,0.00083,61993.0,61992.0,3.08533907]
[1722686762662,0.00083,61993.0,61992.0,3.15235312]
[1722686763492,0.00083,61993.0,61992.0,3.15221566]
[1722686764706,0.00083,61993.0,61992.0,3.39418166]
[1722686764885,0.00083,61993.0,61992.0,3.14221566]
[1722686765295,0.00083,61993.0,61992.0,2.86758323]
[1722686765534,0.00083,61993.0,61992.0,3.30049251]
[1722686766531,0.00083,61993.0,61992.0,3.05852651]
[1722686767234,0.00083,61993.0,61992.0,3.51468921]
[1722686768041,0.00083,61993.0,61992.0,3.52468921]
[1722686768289,0.00083,61993.0,61992.0,3.60528921]
[1722686768486,0.00083,61993.0,61992.0,3.7728238]
[1722686768840,0.00083,61993.0,61992.0,3.77286449]
[1722686769044,0.00083,61993.0,61992.0,3.6053299]
[1722686769458,0.00083,61993.0,61992.0,3.7728645]
[1722686769668,0.00083,61993.0,61992.0,3.7767635]
[1722686770079,0.00083,61993.0,61992.0,3.56252611]
[1722686770578,0.00083,61993.0,61992.0,3.66252611]
[1722686772379,0.00083,61993.0,61992.0,3.35716328]
[1722686772577,0.00083,61993.0,61992.0,3.64731917]
[1722686772927,0.00083,61993.0,61992.0,3.65731868]
[1722686773150,0.00083,61993.0,61992.0,3.64731868]
[1722686773801,0.00083,61993.0,61992.0,3.64531868]
[1722686774448,0.00083,61993.0,61992.0,3.32275268]
[1722686774621,0.00083,61993.0,61992.0,3.5370145]
[1722686774859,0.00083,61993.0,61992.0,3.36948139]
[1722686775295,0.00083,61993.0,61992.0,3.53701672]
[1722686775510,0.00083,61993.0,61992.0,3.36948139]
[1722686775724,0.00083,61993.0,61992.0,3.61144739]
[1722686775967,0.00083,61993.0,61992.0,3.5370169]
[1722686776190,0.00083,61993.0,61992.0,3.38928607]
[1722686776375,0.00083,61993.0,61992.0,3.63125207]
[1722686776607,0.00083,61993.0,61992.0,3.79878705]
[1722686776810,0.00083,61993.0,61992.0,3.78878705]
[1722686777010,0.00083,61993.0,61992.0,3.54682105]
[1722686777643,0.00083,61993.0,61992.0,3.78878705]
[1722686778044,0.00083,61993.0,61992.0,3.79078705]
[1722686778390,0.00083,61993.0,61992.0,3.80079834]
[1722686779136,0.00083,61993.0,61992.0,3.5669692]
[1722686779334,0.00083,61993.0,61992.0,3.80151713]
[1722686780173,0.00083,61993.0,61992.0,3.73234402]
[1722686780541,0.00083,61993.0,61992.0,3.72234402]
[1722686780691,0.00083,61993.0,61992.0,3.87709841]
[1722686780887,0.00083,61993.0,61992.0,3.27747802]
[1722686781136,0.00083,61993.0,61992.0,3.54756022]
[1722686782343,0.00083,61993.0,61992.0,3.33327802]
[1722686782750,0.00083,61993.0,61992.0,3.33433902]
[1722686783159,0.00083,61993.0,61992.0,3.54862762]
[1722686783384,0.00083,61993.0,61992.0,3.54862789]
[1722686783596,0.00083,61993.0,61992.0,3.16680505]
[1722686783820,0.00083,61993.0,61992.0,0.71654973]
[1722686783821,0.14653,61993.0,61992.0,0.71654973]
[1722686784035,0.158131,61993.0,61992.0,0.33499658]
[1722686784244,0.158131,61993.0,61992.0,0.16218359]
[1722686784446,0.31559024,61993.0,61992.0,0.16218359]
[1722686784855,0.31559024,61993.0,61992.0,0.14818359]
[1722686785056,0.31559024,61993.0,61992.0,0.26916659]
[1722686785264,0.31559024,61993.0,61992.0,0.51413259]
[1722686786132,0.31559024,61993.0,61992.0,0.50013259]
[1722686786535,0.31559024,61993.0,61992.0,0.50313259]
[1722686786738,0.31559024,61993.0,61992.0,0.74509859]
[1722686787149,0.31559024,61993.0,61992.0,0.50313259]
[1722686787981,0.14653,61993.0,61992.0,0.74509859]
[1722686788388,0.14653,61993.0,61992.0,0.98706459]
[1722686793432,0.14653,61993.0,61992.0,0.98106459]
[1722686793845,0.14653,61993.0,61992.0,0.98506459]
[1722686794056,0.14653,61993.0,61992.0,0.98106459]
[1722686794255,0.14653,61993.0,61992.0,0.98506459]
[1722686795424,0.14653,61993.0,61992.0,0.99006459]
[1722686795623,0.14653,61993.0,61992.0,0.98606459]
[1722686796042,0.06663,61993.0,61992.0,1.22803059]
[1722686796272,0.00083,61993.0,61992.0,1.35152203]
[1722686796482,0.00083,61993.0,61992.0,1.40091994]
[1722686796700,0.00083,61993.0,61992.0,1.40691994]
[1722686797108,0.00083,61993.0,61992.0,1.40091994]
[1722686797304,0.00083,61993.0,61992.0,1.39491994]
[1722686797513,0.00083,61993.0,61992.0,1.41491994]
[1722686798334,0.00083,61993.0,61992.0,1.36651013]
[1722686798810,0.00083,61993.0,61992.0,1.36590156]
[1722686799058,0.00083,61993.0,61992.0,1.24303059]
[1722686799510,0.00083,61993.0,61992.0,1.36590187]
[1722686799739,0.00083,61993.0,61992.0,1.3659029]
[1722686800794,0.00083,61993.0,61992.0,1.24303059]
[1722686801000,0.00083,61993.0,61992.0,1.36578477]
[1722686803097,0.00083,61993.0,61992.0,1.41419458]
[1722686803726,0.00083,61993.0,61992.0,1.41404379]
[1722686804162,0.00083,61993.0,61992.0,1.36578477]
[1722686804593,0.00083,61993.0,61992.0,1.53792109]
[1722686804812,0.00083,61993.0,61992.0,1.86878033]
[1722686805036,0.00083,61993.0,61992.0,2.13493978]
[1722686805468,0.00083,61993.0,61992.0,2.03813161]
[1722686805876,0.00083,61993.0,61992.0,2.03790352]
[1722686806326,0.00083,61993.0,61992.0,2.02790352]
[1722686806740,0.00083,61993.0,61992.0,2.03190352]
[1722686807165,0.00083,61993.0,61992.0,2.16691373]
[1722686807371,0.00083,61993.0,61992.0,2.11491983]
[1722686807580,0.00083,61993.0,61992.0,3.32070352]
[1722686807793,0.00083,61993.0,61992.0,3.45473493]
[1722686808683,0.00083,61993.0,61992.0,3.44073493]
[1722686809065,0.00083,61993.0,61992.0,3.43873493]
[1722686809378,0.00083,61993.0,61992.0,3.37443493]
[1722686809728,0.00083,61993.0,61992.0,3.30741919]
[1722686809930,0.00083,61993.0,61992.0,3.32141919]
[1722686810141,0.00083,61993.0,61992.0,3.30741919]
[1722686810334,0.00083,61993.0,61992.0,3.30758565]
[1722686810536,0.00083,61993.0,61992.0,3.32158565]
[1722686810734,0.00083,61993.0,61992.0,3.30758565]
[1722686811141,0.00083,61993.0,61992.0,3.1993715]
[1722686811318,0.00083,61993.0,61992.0,3.32149013]
[1722686811544,0.00083,61993.0,61992.0,3.32149072]
[1722686812048,0.00083,61993.0,61992.0,3.30949072]
[1722686812177,0.00083,61993.0,61992.0,3.37379072]
[1722686813353,0.00083,61993.0,61992.0,3.38779072]
[1722686813562,0.00083,61993.0,61992.0,3.37379072]
[1722686813767,0.00083,61993.0,61992.0,3.35979072]
[1722686813928,0.00083,61993.0,61992.0,3.38779072]
[1722686814298,0.00083,61993.0,61992.0,3.37379072]
[1722686814501,0.00083,61993.0,61992.0,3.30677446]
[1722686814732,0.00083,61993.0,61992.0,3.18465583]
[1722686814902,0.00083,61993.0,61992.0,3.30669441]
[1722686815110,0.00083,61993.0,61992.0,3.35970964]
[1722686815309,0.00083,61993.0,61992.0,3.29269441]
[1722686815535,0.00083,61993.0,61992.0,3.37370964]
[1722686815693,0.00083,61993.0,61992.0,3.38570964]
[1722686816130,0.00083,61993.0,61992.0,3.38770964]
[1722686816579,0.00083,61993.0,61992.0,3.39770964]
[1722686816780,0.00083,61993.0,61992.0,3.53247283]
[1722686818159,0.00083,61993.0,61992.0,3.51847283]
[1722686818387,0.00083,61993.0,61992.0,3.51813165]
[1722686818592,0.00083,61993.0,61992.0,3.53013165]
[1722686818987,0.00083,61993.0,61992.0,3.32106846]
[1722686819107,0.00083,61993.0,61992.0,3.30706846]
[1722686819321,0.00083,61993.0,61992.0,3.32106846]
[1722686820536,0.00083,61993.0,61992.0,3.32306846]
[1722686823693,0.00083,61993.0,61992.0,3.32106846]
[1722686824375,0.00083,61993.0,61992.0,3.13235583]
[1722686824576,0.00083,61993.0,61992.0,3.32085494]
[1722686824781,0.00083,61993.0,61992.0,3.25384404]
[1722686825206,0.00083,61993.0,61992.0,2.99729224]
[1722686826050,0.00083,61993.0,61992.0,2.93041246]
[1722686826225,0.00083,61993.0,61992.0,2.9974293]
[1722686826423,0.00083,61993.0,61992.0,3.1402293]
[1722686826625,0.00083,61993.0,61992.0,3.3841953]
[1722686827235,0.00083,61993.0,61992.0,3.1402293]
[1722686827821,0.00083,61993.0,61992.0,2.95158983]
[1722686828041,0.00083,61993.0,61992.0,3.14050903]
[1722686829175,0.00083,61993.0,61992.0,3.19630903]
[1722686829393,0.00083,61993.0,61992.0,3.43827503]
[1722686829590,0.00083,61993.0,61992.0,3.19830903]
[1722686830493,0.00083,61993.0,61992.0,3.29930131]
[1722686830698,0.00083,61993.0,61992.0,3.54126731]
[1722686830898,0.00083,61993.0,61992.0,3.29930131]
[1722686831432,0.00083,61993.0,61992.0,3.54126731]
[1722686833323,0.00083,61993.0,61992.0,3.68602044]
[1722686834121,0.00083,61993.0,61992.0,3.68402044]
[1722686834366,0.00083,61993.0,61992.0,3.38155444]
[1722686834544,0.00083,61993.0,61992.0,3.13580903]
[1722686834950,0.00083,61993.0,61992.0,3.0139033]
[1722686835144,0.00083,61993.0,61992.0,3.06872929]
[1722686835398,0.00083,61993.0,61992.0,3.01390574]
[1722686835588,0.00083,61993.0,61992.0,3.13570293]
[1722686835802,0.00083,61993.0,61992.0,3.06868702]
[1722686836091,0.00083,61993.0,61992.0,3.38145074]
[1722686837903,0.1439,62002.0,62001.0,0.902558]
[1722686837904,0.13556,62002.0,62001.0,0.902558]
[1722686838116,0.13556,62002.0,62001.0,1.09683167]
[1722686838336,0.13556,62002.0,62001.0,1.12397218]
[1722686838488,0.13556,62002.0,62001.0,1.1237114]
[1722686838909,0.13556,62002.0,62001.0,1.3701424]
[1722686839150,0.00909,62008.0,62007.0,0.846678]
[1722686839366,0.00909,62008.0,62007.0,1.02401441]
[1722686839575,0.00909,62008.0,62007.0,1.05115172]
[1722686839788,0.07359,62008.0,62007.0,1.05115172]
[1722686840433,0.07359,62008.0,62007.0,1.05815172]
[1722686840638,0.07359,62008.0,62007.0,1.06615172]
[1722686840837,0.14869,62008.0,62007.0,1.06615172]
[1722686841874,0.14869,62008.0,62007.0,1.30805972]
[1722686842549,0.07359,62008.0,62007.0,1.30805972]
[1722686843107,0.07128768,62008.0,62007.0,1.30805972]
[1722686844181,0.07128768,62008.0,62007.0,1.31255972]
[1722686845538,0.07128768,62008.0,62007.0,1.31189002]
[1722686845915,0.07128768,62008.0,62007.0,1.19102331]
[1722686846279,0.07128768,62008.0,62007.0,1.31188971]
[1722686846775,0.00678768,62008.0,62007.0,1.31188971]
[1722686847635,0.00678768,62008.0,62007.0,1.40856047]
[1722686849185,0.00678768,62008.0,62007.0,1.40866706]
[1722686849367,0.00678768,62008.0,62007.0,1.41852547]
[1722686849745,6.8e-07,62008.0,62007.0,3.45781235]
[1722686849952,6.8e-07,62008.0,62007.0,3.50494385]
[1722686850090,0.00909,62010.0,62007.0,3.50494385]
[1722686850091,6.8e-07,62010.0,62009.0,1.47815]
[1722686850290,6.8e-07,62010.0,62009.0,1.94658235]
[1722686850493,6.8e-07,62010.0,62009.0,2.07462966]
[1722686851309,6.8e-07,62010.0,62009.0,1.98766782]
[1722686851520,6.8e-07,62010.0,62009.0,1.97366782]
[1722686851931,6.8e-07,62010.0,62009.0,1.98766782]
[1722686852131,6.8e-07,62010.0,62009.0,2.00166782]
[1722686852338,6.8e-07,62010.0,62009.0,2.14644562]
[1722686853095,6.8e-07,62010.0,62009.0,2.00166782]
[1722686853309,6.8e-07,62010.0,62009.0,2.14641199]
[1722686853730,6.8e-07,62010.0,62009.0,2.13241199]
[1722686854405,6.8e-07,62010.0,62009.0,2.00166782]
[1722686855262,6.8e-07,62010.0,62009.0,3.27446782]
[1722686855866,0.05351068,62017.0,62016.0,1.176028]
[1722686856099,0.05351068,62017.0,62016.0,1.254828]
[1722686856301,0.05351068,62017.0,62016.0,1.40328393]
[1722686856515,0.05351068,62017.0,62016.0,1.47561072]
[1722686856724,0.05351068,62017.0,62016.0,1.47562286]
[1722686857171,0.05351068,62017.0,62016.0,1.48962286]
[1722686857344,0.05351068,62017.0,62016.0,1.50362286]
[1722686857597,0.05351068,62017.0,62016.0,1.43129607]
[1722686857821,0.04351068,62017.0,62016.0,1.43129607]
[1722686857998,0.04351068,62017.0,62016.0,1.47951245]
[1722686858202,0.04351068,62017.0,62016.0,1.63697169]
[1722686858332,0.04351068,62017.0,62016.0,1.58875531]
[1722686858537,0.03351068,62017.0,62016.0,1.63696304]
[1722686859163,0.02351068,62017.0,62016.0,1.63696304]
[1722686859620,0.01351068,62017.0,62016.0,1.51557672]
[1722686859957,0.00260068,62019.0,62018.0,1.092892]
[1722686860160,0.00219068,62022.0,62021.0,0.120926]
[1722686860359,0.00219068,62022.0,62021.0,0.176726]
[1722686860585,0.00219068,62022.0,62021.0,0.92932958]
[1722686861746,0.00219068,62022.0,62021.0,0.87352958]
[1722686861885,0.14659068,62022.0,62021.0,1.18118258]
[1722686862084,0.14659068,62022.0,62021.0,1.19118258]
[1722686865444,0.14659068,62022.0,62021.0,0.89352958]
[1722686865645,0.14659068,62022.0,62021.0,0.94932958]
[1722686871092,0.14659068,62022.0,62021.0,1.07024502]
[1722686873126,0.14659068,62022.0,62021.0,1.07012227]
[1722686873540,0.00219068,62022.0,62021.0,1.07012227]
[1722686873940,0.00219068,62022.0,62021.0,1.31647527]
[1722686874144,0.00219068,62022.0,62021.0,1.33947527]
[1722686874623,0.00219068,62022.0,62021.0,1.43947527]
[1722686874822,0.00219068,62022.0,62021.0,1.57957527]
[1722686875726,0.00219068,62022.0,62021.0,1.62776156]
[1722686876338,0.00219068,62022.0,62021.0,1.61776156]
[1722686876469,0.00219068,62022.0,62021.0,1.61763282]
[1722686876679,0.00219068,62022.0,62021.0,1.57123282]
[1722686877107,0.00219068,62022.0,62021.0,1.54723282]
[1722686877311,0.00219068,62022.0,62021.0,1.63622093]
[1722686877711,0.00219068,62022.0,62021.0,1.62622093]
[1722686878026,0.00219068,62022.0,62021.0,1.63922093]
[1722686878639,0.00219068,62022.0,62021.0,1.44434653]
[1722686880050,0.00219068,62022.0,62021.0,1.44497399]
[1722686880457,0.00219068,62022.0,62021.0,1.44497567]
[1722686882666,0.00169068,62022.0,62021.0,1.44497567]
[1722686883721,0.00169068,62022.0,62021.0,1.63575368]
[1722686883921,0.00169068,62022.0,62021.0,1.69755368]
[1722686884365,0.00169068,62022.0,62021.0,1.64936547]
[1722686885205,0.00169068,62022.0,62021.0,1.70864779]
[1722686885405,0.00169068,62022.0,62021.0,1.69636232]
[1722686885612,0.00169068,62022.0,62021.0,1.72136232]
[1722686885786,0.00169068,62022.0,62021.0,1.72147643]
[1722686887457,0.00169068,62022.0,62021.0,1.64919411]
[1722686887983,0.00169068,62022.0,62021.0,1.56920431]
[1722686888141,0.00169068,62022.0,62021.0,1.6501932]
[1722686888560,0.00169068,62022.0,62021.0,1.73456963]
[1722686888755,0.00169068,62022.0,62021.0,1.74756963]
[1722686889155,0.00169068,62022.0,62021.0,1.73356963]
[1722686889315,0.00169068,62022.0,62021.0,1.72066927]
[1722686889734,0.00169068,62022.0,62021.0,1.5994479]
[1722686889944,0.00169068,62022.0,62021.0,1.79969852]
[1722686890171,0.00169068,62022.0,62021.0,1.73270963]
[1722686890375,0.00169068,62022.0,62021.0,1.5745332]
[1722686890579,0.00169068,62022.0,62021.0,1.5625332]
[1722686891349,0.00169068,62022.0,62021.0,1.5765332]
[1722686891557,0.00169068,62022.0,62021.0,1.69717181]
[1722686891968,0.00169068,62022.0,62021.0,1.85463105]
[1722686892151,0.00169068,62022.0,62021.0,2.05064544]
[1722686892836,0.00169068,62022.0,62021.0,1.86239482]
[1722686893053,0.00169068,62022.0,62021.0,2.20299133]
[1722686893261,0.00169068,62022.0,62021.0,2.05044282]
[1722686893502,0.00169068,62022.0,62021.0,3.32324282]
[1722686893715,0.00169068,62022.0,62021.0,3.62035598]
[1722686893920,0.00169068,62022.0,62021.0,3.57673632]
[1722686894121,0.00169068,62022.0,62021.0,3.57873632]
[1722686895071,0.00169068,62022.0,62021.0,3.56473632]
[1722686895317,0.00169068,62022.0,62021.0,3.46379133]
[1722686895513,0.00169068,62022.0,62021.0,3.57873486]
[1722686895694,0.00169068,62022.0,62021.0,3.56573486]
[1722686896046,0.00169068,62022.0,62021.0,3.57973486]
[1722686896465,0.00169068,62022.0,62021.0,3.47879133]
[1722686898698,0.00169068,62022.0,62021.0,3.46279133]
[1722686899228,0.00169068,62022.0,62021.0,3.477656]
[1722686899613,0.00169068,62022.0,62021.0,3.20318017]
[1722686899893,0.00169068,62022.0,62021.0,3.41080046]
[1722686900092,0.00169068,62022.0,62021.0,3.54476236]
[1722686900311,0.00169068,62022.0,62021.0,3.62253984]
[1722686900515,0.00169068,62022.0,62021.0,3.68952111]
[1722686903253,0.00169068,62022.0,62021.0,3.62252082]
[1722686907327,0.00169068,62022.0,62021.0,3.47778495]
[1722686908402,0.00169068,62022.0,62021.0,3.57872965]
[1722686908999,0.00169068,62022.0,62021.0,3.51692965]
[1722686910609,0.00169068,62022.0,62021.0,3.24232079]
[1722686910812,0.00169068,62022.0,62021.0,3.51200133]
[1722686910989,0.00169068,62022.0,62021.0,3.57898336]
[1722686911689,0.00169068,62022.0,62021.0,3.42223866]
[1722686911871,0.00169068,62022.0,62021.0,3.47803866]
[1722686913693,0.00169068,62022.0,62021.0,3.28983508]
[1722686913892,0.00169068,62022.0,62021.0,3.47933413]
[1722686914103,0.00169068,62022.0,62021.0,3.04458113]
[1722686914104,0.06429068,62022.0,62021.0,3.04458113]
[1722686914298,0.06429068,62022.0,62021.0,3.10038113]
[1722686914435,0.00169068,62022.0,62021.0,3.10038113]
[1722686914639,0.00169068,62022.0,62021.0,1.82758113]
[1722686916692,0.00169068,62022.0,62021.0,1.77178113]
[1722686916894,0.00169068,62022.0,62021.0,1.67364087]
[1722686917308,0.00169068,62022.0,62021.0,1.60665603]
[1722686917506,0.00169068,62022.0,62021.0,1.6736451]
[1722686917912,0.14679068,62022.0,62021.0,1.17984379]
[1722686918311,0.14679068,62022.0,62021.0,1.27645801]
[1722686918487,0.14679068,62022.0,62021.0,1.17984379]
[1722686919570,0.14679068,62022.0,62021.0,1.22817028]
[1722686920569,0.14679068,62022.0,62021.0,1.2289773]
[1722686920944,0.14679068,62022.0,62021.0,1.12877968]
[1722686921135,0.14679068,62022.0,62021.0,1.08045319]
[1722686922432,0.14679068,62022.0,62021.0,1.06645319]
[1722686922678,0.14679068,62022.0,62021.0,1.05245319]
[1722686922888,0.14679068,62022.0,62021.0,1.05745319]
[1722686923335,0.14679068,62022.0,62021.0,1.05845319]
[1722686923736,0.14679068,62022.0,62021.0,0.94032958]
[1722686924246,0.14679068,62022.0,62021.0,1.06357334]
[1722686925602,0.14679068,62022.0,62021.0,0.94032958]
[1722686926147,0.16839168,62022.0,62021.0,0.03804458]
[1722686926347,0.15839168,62022.0,62021.0,0.40082358]
[1722686926544,0.15839168,62022.0,62021.0,0.15897058]
[1722686926545,0.15289168,62022.0,62021.0,0.15897058]
[1722686926756,0.15289168,62022.0,62021.0,0.40082358]
[1722686926757,0.14679068,62022.0,62021.0,0.40082358]
[1722686927069,0.14679068,62022.0,62021.0,0.69847658]
[1722686929363,0.14679068,62022.0,62021.0,0.64267658]
[1722686929564,0.14679068,62022.0,62021.0,0.69847658]
[1722686932335,0.14679068,62022.0,62021.0,0.94032958]
[1722686937308,0.14679068,62022.0,62021.0,0.69847658]
[1722686937513,0.14679068,62022.0,62021.0,0.64267658]
[1722686937684,0.15839168,62022.0,62021.0,0.40082358]
[1722686938278,0.15819762,62022.0,62021.0,0.40082358]
[1722686940864,0.15819762,62022.0,62021.0,0.69847658]
[1722686941775,0.15209662,62022.0,62021.0,0.69847658]
[1722686942177,0.14659662,62022.0,62021.0,0.69847658]
[1722686942516,0.15819762,62022.0,62021.0,0.69847658]
[1722686942721,0.15819762,62022.0,62021.0,0.94032958]
[1722686943163,0.14659662,62022.0,62021.0,0.94032958]
[1722686943361,0.06609662,62022.0,62021.0,0.94032958]
[1722686943865,0.06609662,62022.0,62021.0,0.88452958]
[1722686943866,0.14539662,62022.0,62021.0,0.88452958]
[1722686944124,0.68722986,62022.0,62021.0,0.03804458]
[1722686944576,0.92907886,62022.0,62021.0,0.011]
[1722686944722,1.17092786,62022.0,62021.0,0.011]
[1722686944933,1.17092786,62022.0,62021.0,0.006]
[1722686945105,0.378886,62020.0,62019.0,0.000913]
[1722686945304,1.02654524,62020.0,62019.0,0.000913]
[1722686945752,1.27390224,62020.0,62019.0,0.000913]
[1722686946629,1.27190224,62020.0,62019.0,0.000913]
[1722686946850,1.27390224,62020.0,62019.0,0.002913]
[1722686947039,1.02404524,62020.0,62019.0,0.002913]
[1722686947244,0.66126024,62020.0,62019.0,0.03237969]
[1722686948028,0.66026024,62020.0,62019.0,0.03137969]
[1722686948223,0.66026024,62020.0,62019.0,0.001913]
[1722686948746,0.66126024,62020.0,62019.0,0.002913]
[1722686948906,0.65926024,62020.0,62019.0,0.000913]
[1722686949102,0.65926024,62020.0,62019.0,0.001913]
[1722686949287,0.78218824,62020.0,62019.0,0.03237969]
[1722686949488,0.78218824,62020.0,62019.0,0.002913]
[1722686949688,0.78218824,62020.0,62019.0,0.03237969]
[1722686951433,0.78218824,62020.0,62019.0,0.002913]
[1722686952303,0.79018824,62020.0,62019.0,0.002913]
[1722686953513,0.66926024,62020.0,62019.0,0.002913]
[1722686953891,0.79018824,62020.0,62019.0,0.002913]
[1722686959687,1.03204524,62020.0,62019.0,0.002913]
[1722686960122,0.79018824,62020.0,62019.0,0.002913]
[1722686960738,1.03204524,62020.0,62019.0,0.03241155]
[1722686960956,1.03204524,62020.0,62019.0,0.002913]
[1722686961862,1.27390224,62020.0,62019.0,0.002913]
[1722686962818,1.02404524,62020.0,62019.0,0.002913]
[1722686963431,1.02404524,62020.0,62019.0,0.03241155]
[1722686963432,0.78218824,62020.0,62019.0,0.03241155]
[1722686963641,0.66126024,62020.0,62019.0,0.03241155]
[1722686964042,0.66126024,62020.0,62019.0,0.39520255]
[1722686964043,0.58196024,62020.0,62019.0,0.39520255]
[1722686964242,0.58196024,62020.0,62019.0,0.15334155]
[1722686964445,0.58196024,62020.0,62019.0,0.39520255]
[1722686964651,0.58196024,62020.0,62019.0,0.03241155]
[1722686965054,0.58196024,62020.0,62019.0,0.39520255]
[1722686965298,0.58196024,62020.0,62019.0,0.15334155]
[1722686968424,0.58196024,62020.0,62019.0,0.39520255]
[1722686969369,0.360601,62020.0,62019.0,0.39520255]
[1722686969597,0.360601,62020.0,62019.0,0.95642455]
[1722686970555,0.359601,62020.0,62019.0,0.95342455]
[1722686971185,0.359601,62020.0,62019.0,1.07517544]
[1722686971389,0.359601,62020.0,62019.0,0.95342455]
[1722686971587,0.359601,62020.0,62019.0,1.07417205]
[1722686971588,0.358601,62020.0,62019.0,1.07417205]
[1722686971787,0.358601,62020.0,62019.0,1.07617205]
[1722686971989,0.358601,62020.0,62019.0,0.95442455]
[1722686972616,0.358601,62020.0,62019.0,0.95842455]
[1722686972850,0.358601,62020.0,62019.0,0.95642455]
[1722686973132,0.358601,62020.0,62019.0,0.95842455]
[1722686973880,0.358601,62020.0,62019.0,0.95642455]
[1722686975142,0.358601,62020.0,62019.0,0.95842455]
[1722686975341,0.358601,62020.0,62019.0,0.95642455]
[1722686978027,0.358601,62020.0,62019.0,0.95842455]
[1722686979789,0.358601,62020.0,62019.0,0.95642455]
[1722686979987,0.358601,62020.0,62019.0,0.95842455]
[1722686980187,0.347,62020.0,62019.0,1.1425303]
[1722686981031,0.34783,62020.0,62019.0,1.1425303]
[1722686984203,0.34783,62020.0,62019.0,1.14275987]
[1722686984439,0.509231,62020.0,62019.0,0.03441155]
[1722686984648,0.78761824,62020.0,62019.0,0.03441155]
[1722686984874,0.78761824,62020.0,62019.0,0.0343696]
[1722686985025,1.10822718,62020.0,62019.0,0.0343696]
[1722686985233,1.10822718,62020.0,62019.0,0.004913]
[1722686985234,1.02947524,62020.0,62019.0,0.004913]
[1722686985656,1.02947524,62020.0,62019.0,0.002913]
[1722686985855,0.77961824,62020.0,62019.0,0.002913]
[1722686986453,0.77961824,62020.0,62019.0,0.000913]
[1722686986945,0.78061824,62020.0,62019.0,0.000913]
[1722686987147,0.77961824,62020.0,62019.0,0.000913]
[1722686987751,0.77961824,62020.0,62019.0,0.001913]
[1722686987752,0.78061824,62020.0,62019.0,0.001913]
[1722686987976,0.66069024,62020.0,62019.0,0.002913]
[1722686988340,0.423131,62020.0,62019.0,0.364704]
[1722686988541,0.424131,62020.0,62019.0,0.15334155]
[1722686988770,0.424131,62020.0,62019.0,0.39520255]
[1722686989185,0.424131,62020.0,62019.0,0.63706355]
[1722686989389,0.361431,62020.0,62019.0,0.63706355]
[1722686990286,0.360431,62020.0,62019.0,0.63606355]
[1722686990486,0.361431,62020.0,62019.0,0.63706355]
[1722686990692,0.360431,62020.0,62019.0,0.63606355]
[1722686990950,0.360431,62020.0,62019.0,0.63706355]
[1722686991162,0.362431,62020.0,62019.0,0.63806355]
[1722686991363,0.362431,62020.0,62019.0,0.63606355]
[1722686991566,0.361431,62020.0,62019.0,0.63506355]
[1722686991779,0.362431,62020.0,62019.0,0.63706355]
[1722686991922,0.362431,62020.0,62019.0,0.63506355]
[1722686991923,0.360431,62020.0,62019.0,0.63506355]
[1722686992130,0.360431,62020.0,62019.0,0.63706355]
[1722686992330,0.359431,62020.0,62019.0,0.63706355]
[1722686992553,0.359431,62020.0,62019.0,0.63506355]
[1722686992963,0.359431,62020.0,62019.0,0.87692455]
[1722686994323,0.359431,62020.0,62019.0,0.87892455]
[1722686994827,0.359431,62020.0,62019.0,0.87692455]
[1722686996233,0.359431,62020.0,62019.0,0.63506355]
[1722687004148,0.359431,62020.0,62019.0,0.63706355]
[1722687004966,0.359431,62020.0,62019.0,1.02202455]
[1722687005171,0.34783,62020.0,62019.0,1.14294898]
[1722687005371,0.34783,62020.0,62019.0,1.14494898]
[1722687005989,0.34783,62020.0,62019.0,1.19328119]
[1722687006627,0.34783,62020.0,62019.0,1.19128119]
[1722687006825,0.34783,62020.0,62019.0,1.19328119]
[1722687007055,0.34783,62020.0,62019.0,1.14994898]
[1722687007258,0.34783,62020.0,62019.0,1.14294898]
[1722687007493,0.34783,62020.0,62019.0,1.19128119]